fUSD/lending_fUSD_20240630
["ID","MTS","AMOUNT","RATE_DAILY","PERIOD"]
[330753340,1719755510071,-689.57,0.00014684,3]
[330753341,1719755510080,-957.05,0.00014684,3]
[330753342,1719755510089,-1173.05,0.00014684,3]
[330753343,1719755510099,-507.92,0.00014684,3]
[330753344,1719755510108,-544.05,0.00014684,3]
[330753345,1719755510117,-500.0,0.00014684,3]
[330753346,1719755510126,-500.0,0.00014684,3]
[330753347,1719755510135,-703.63,0.00014684,3]
[330753348,1719755510145,-592.64,0.00014684,3]
[330753349,1719755510154,-500.0,0.00014684,3]
[330753350,1719755510164,-500.0,0.00014684,3]
[330753351,1719755510173,-759.3,0.00014684,3]
[330753352,1719755510182,-500.0,0.00014684,3]
[330753353,1719755510191,-500.0,0.00014684,3]
[330753354,1719755510203,-317.21,0.00014684,3]
[330753355,1719755510216,-641.73,0.00014684,3]
[330753356,1719755510225,-910.64,0.00014684,3]
[330753357,1719755510234,-544.61,0.00014684,3]
[330753358,1719755510243,-590.62,0.00014684,3]
[330753359,1719755510252,-500.0,0.00014684,3]
[330753360,1719755510261,-689.38,0.00014684,3]
[330753361,1719755510271,-500.0,0.00014684,3]
[330753362,1719755510281,-661.02,0.00014684,3]
[330753363,1719755510290,-2904.97,0.00014684,3]
[330753364,1719755510300,-500.0,0.00014684,3]
[330753365,1719755510309,-500.0,0.00014684,3]
[330753366,1719755510318,-507.72,0.00014684,3]
[330753367,1719755510326,-1290.65,0.00014684,3]
[330753368,1719755510336,-500.0,0.00014684,3]
[330753369,1719755510345,-554.44,0.00014684,3]
[330753370,1719755510355,-578.69,0.00014684,3]
[330753371,1719755510363,-655.08,0.00014684,3]
[330753372,1719755510373,-1361.14,0.00014684,3]
[330753373,1719755510382,-812.49,0.00014684,3]
[330753374,1719755510392,-306.14,0.00014684,3]
[330753375,1719755510401,-634.96,0.00014684,3]
[330753376,1719755510410,-500.0,0.00014684,3]
[330753377,1719755510419,-500.0,0.00014684,3]
[330753378,1719755510428,-500.0,0.00014684,3]
[330753379,1719755510438,-500.0,0.00014684,3]
[330753380,1719755510453,-896.65,0.00014684,3]
[330753381,1719755510463,-787.92,0.00014684,3]
[330753382,1719755510472,-500.0,0.00014684,3]
[330753383,1719755510481,-500.0,0.00014684,3]
[330753384,1719755510489,-1488.55,0.00014684,3]
[330753385,1719755510498,-584.33,0.00014684,3]
[330753386,1719755510507,-1089.27,0.00014684,3]
[330753387,1719755510516,-500.0,0.00014684,3]
[330753388,1719755510525,-500.0,0.00014684,3]
[330753389,1719755510534,-500.0,0.00014684,3]
[330753390,1719755510543,-500.0,0.00014684,3]
[330753391,1719755510552,-227.88,0.00014684,3]
[330753392,1719755510561,-664.84,0.00014684,3]
[330753393,1719755510570,-516.98,0.00014684,3]
[330753394,1719755510579,-2577.34,0.00014684,3]
[330753395,1719755510593,-1135.43,0.00014721,3]
[330753396,1719755510602,-1617.34,0.00014721,3]
[330753397,1719755510612,-1220.92,0.00014721,3]
[330753398,1719755510622,-529.92,0.00014721,3]
[330753399,1719755510632,-1337.79,0.00014721,3]
[330753400,1719755510641,-1162.53,0.00014721,3]
[330753401,1719755510650,-3818.29,0.00014723,3]
[330753402,1719755510659,-2148.15,0.00014751,3]
[330753403,1719755510671,-1274.99,0.00014751,3]
[330753404,1719755510681,-1079.15,0.0001476,3]
[330753405,1719755510690,-1590.65,0.0001476,3]
[330753406,1719755510706,-1459.73,0.0001476,3]
[330753407,1719755510715,-911.31,0.0001476,3]
[330753408,1719755510725,-592.8,0.0001476,3]
[330753409,1719755510734,-830.15,0.0001476,3]
[330753410,1719755510743,-1114.89,0.0001476,3]
[330753411,1719755510752,-500.0,0.0001476,3]
[330753412,1719755510762,-967.5,0.0001476,3]
[330753413,1719755510771,-640.83,0.0001476,3]
[330753414,1719755510781,-500.0,0.0001476,3]
[330753415,1719755510790,-300.09148991,0.0001479,2]
[330753416,1719755510799,-500.0,0.00014794,3]
[330753417,1719755510807,-500.0,0.00014794,3]
[330753418,1719755510816,-1492.12,0.00014794,3]
[330753419,1719755510826,-526.54,0.00014794,3]
[330753420,1719755510835,-518.76,0.00014794,3]
[330753421,1719755510844,-500.0,0.00014794,3]
[330753422,1719755510853,-554.07,0.00014794,3]
[330753423,1719755510863,-296.12,0.00014794,3]
[330753424,1719755510872,-500.0,0.00014794,3]
[330753425,1719755510881,-500.0,0.00014794,3]
[330753426,1719755510890,-500.0,0.00014794,3]
[330753427,1719755510899,-500.0,0.00014794,3]
[330753428,1719755510908,-500.0,0.00014794,3]
[330753429,1719755510917,-500.0,0.00014794,3]
[330753430,1719755510926,-291.61,0.00014794,3]
[330753431,1719755510935,-500.0,0.00014794,3]
[330753432,1719755510947,-500.0,0.00014794,3]
[330753433,1719755510956,-1182.32,0.00014794,3]
[330753434,1719755510965,-500.0,0.00014794,3]
[330753435,1719755510973,-500.0,0.00014794,3]
[330753436,1719755510982,-553.99,0.00014794,3]
[330753437,1719755510991,-500.0,0.00014794,3]
[330753438,1719755511000,-500.0,0.00014794,3]
[330753439,1719755511009,-500.0,0.00014794,3]
[330753440,1719755511020,-500.0,0.00014794,3]
[330753441,1719755511029,-500.0,0.00014794,3]
[330753442,1719755511038,-505.0,0.00014794,3]
[330753443,1719755511047,-500.0,0.00014794,3]
[330753444,1719755511056,-500.0,0.00014794,3]
[330753445,1719755511066,-500.0,0.00014794,3]
[330753446,1719755511075,-500.0,0.00014794,3]
[330753447,1719755511084,-500.0,0.00014794,3]
[330753448,1719755511094,-561.37,0.00014794,3]
[330753449,1719755511103,-531.25,0.00014794,3]
[330753450,1719755511112,-500.0,0.00014794,3]
[330753451,1719755511121,-528.03,0.00014794,3]
[330753452,1719755511130,-500.0,0.00014794,3]
[330753453,1719755511139,-500.0,0.00014794,3]
[330753454,1719755511148,-500.0,0.00014794,3]
[330753455,1719755511157,-500.0,0.00014794,3]
[330753456,1719755511166,-348.81,0.00014794,3]
[330753457,1719755511176,-900.1,0.00014794,3]
[330753458,1719755511185,-500.0,0.00014794,3]
[330753459,1719755511199,-694.23,0.00014794,3]
[330753460,1719755511207,-500.0,0.00014794,3]
[330753461,1719755511217,-500.0,0.00014794,3]
[330753462,1719755511226,-554.48,0.00014794,3]
[330753463,1719755511235,-500.0,0.00014794,3]
[330753464,1719755511244,-500.0,0.00014794,3]
[330753465,1719755511253,-500.0,0.00014794,3]
[330753466,1719755511262,-500.0,0.00014794,3]
[330753467,1719755511271,-500.0,0.00014794,3]
[330753468,1719755511280,-500.0,0.00014794,3]
[330753469,1719755511289,-500.0,0.00014794,3]
[330753470,1719755511298,-500.0,0.00014794,3]
[330753471,1719755511307,-500.0,0.00014794,3]
[330753472,1719755511318,-593.15,0.00014794,3]
[330753473,1719755511328,-195.03,0.00014794,3]
[330753474,1719755511338,-500.0,0.00014794,3]
[330753475,1719755511348,-690.44,0.00014794,3]
[330753476,1719755511357,-500.0,0.00014794,3]
[330753477,1719755511368,-502.26,0.00014794,3]
[330753478,1719755511377,-500.0,0.00014794,3]
[330753479,1719755511387,-500.0,0.00014794,3]
[330753480,1719755511396,-500.0,0.00014794,3]
[330753481,1719755511405,-500.0,0.00014794,3]
[330753482,1719755511415,-500.0,0.00014794,3]
[330753483,1719755511424,-500.0,0.00014794,3]
[330753484,1719755511433,-757.41,0.00014794,3]
[330753485,1719755511448,-500.0,0.00014794,3]
[330753486,1719755511458,-715.47,0.00014794,3]
[330753487,1719755511468,-621.83,0.00014794,3]
[330753488,1719755511477,-500.0,0.00014794,3]
[330753489,1719755511486,-500.0,0.00014794,3]
[330753490,1719755511494,-571.76,0.00014794,3]
[330753491,1719755511503,-705.69,0.00014794,3]
[330753492,1719755511673,-500.0,0.00014794,3]
[330753493,1719755511683,-500.0,0.00014794,3]
[330753494,1719755511699,-500.0,0.00014794,3]
[330753495,1719755511708,-500.0,0.00014794,3]
[330753496,1719755511717,-500.0,0.00014794,3]
[330753497,1719755511728,-532.86,0.00014794,3]
[330753498,1719755511737,-675.41,0.00014794,3]
[330753499,1719755511748,-581.61,0.00014794,3]
[330753500,1719755511758,-500.0,0.00014794,3]
[330753501,1719755511769,-500.0,0.00014794,3]
[330753502,1719755511778,-663.09,0.00014794,3]
[330753503,1719755511787,-577.38,0.00014794,3]
[330753504,1719755511796,-939.6,0.00014794,3]
[330753505,1719755511806,-386.87,0.00014794,3]
[330753506,1719755511816,-500.0,0.00014794,3]
[330753507,1719755511825,-500.0,0.00014794,3]
[330753508,1719755511834,-500.0,0.00014794,3]
[330753509,1719755511843,-540.81,0.00014794,3]
[330753510,1719755511853,-500.0,0.00014794,3]
[330753511,1719755511862,-718.0,0.00014794,3]
[330753512,1719755511871,-500.0,0.00014794,3]
[330753513,1719755511880,-574.88,0.00014794,3]
[330753514,1719755511889,-500.0,0.00014794,3]
[330753515,1719755511898,-652.08,0.00014794,3]
[330753516,1719755511907,-500.0,0.00014794,3]
[330753517,1719755511916,-920.11,0.00014794,3]
[330753518,1719755511925,-695.25,0.00014794,3]
[330753519,1719755511936,-605.83,0.00014794,3]
[330753520,1719755511952,-677.83,0.00014794,3]
[330753521,1719755511963,-510.24,0.00014794,3]
[330753522,1719755511972,-336.25,0.00014794,3]
[330753523,1719755511982,-581.28,0.00014794,3]
[330753524,1719755511991,-500.0,0.00014794,3]
[330753525,1719755512001,-812.74,0.00014794,3]
[330753526,1719755512011,-500.0,0.00014794,3]
[330753527,1719755512020,-701.39,0.00014794,3]
[330753528,1719755512029,-620.73,0.00014794,3]
[330753529,1719755512038,-500.0,0.00014794,3]
[330753530,1719755512047,-500.0,0.00014794,3]
[330753531,1719755512057,-500.0,0.00014794,3]
[330753532,1719755512067,-553.86,0.00014794,3]
[330753533,1719755512077,-500.0,0.00014794,3]
[330753534,1719755512086,-500.0,0.00014794,3]
[330753535,1719755512095,-621.88,0.00014794,3]
[330753536,1719755512104,-500.0,0.00014794,3]
[330753537,1719755512114,-500.0,0.00014794,3]
[330753538,1719755512123,-612.92,0.00014794,3]
[330753539,1719755512132,-500.0,0.00014794,3]
[330753540,1719755512141,-681.93,0.00014794,3]
[330753541,1719755512150,-562.52,0.00014794,3]
[330753542,1719755512159,-500.0,0.00014794,3]
[330753543,1719755512169,-550.52,0.00014794,3]
[330753544,1719755512179,-757.31,0.00014794,3]
[330753545,1719755512190,-500.0,0.00014794,3]
[330753546,1719755512206,-656.95,0.00014794,3]
[330753547,1719755512215,-738.1,0.00014794,3]
[330753548,1719755512224,-631.07,0.00014794,3]
[330753549,1719755512233,-1210.93,0.00014794,3]
[330753550,1719755512243,-561.72,0.00014794,3]
[330753551,1719755512252,-576.94,0.00014794,3]
[330753552,1719755512262,-500.0,0.00014794,3]
[330753553,1719755512271,-500.0,0.00014794,3]
[330753554,1719755512281,-513.03,0.00014794,3]
[330753555,1719755512291,-748.82,0.00014794,3]
[330753556,1719755512300,-500.0,0.00014794,3]
[330753557,1719755512310,-500.0,0.00014794,3]
[330753558,1719755512319,-851.99,0.00014794,3]
[330753559,1719755512329,-590.03,0.00014794,3]
[330753560,1719755512338,-704.42,0.00014794,3]
[330753561,1719755512348,-1993.43,0.00014794,3]
[330753562,1719755512357,-525.63,0.00014794,3]
[330753563,1719755512367,-500.0,0.00014794,3]
[330753564,1719755512376,-358.25,0.00014794,3]
[330753565,1719755512385,-833.5,0.00014794,3]
[330753566,1719755512394,-500.0,0.00014794,3]
[330753567,1719755512403,-500.0,0.00014794,3]
[330753568,1719755512413,-500.0,0.00014794,3]
[330753569,1719755512422,-500.0,0.00014794,3]
[330753570,1719755512432,-500.0,0.00014794,3]
[330753571,1719755512442,-500.0,0.00014794,3]
[330753572,1719755512456,-500.0,0.00014794,3]
[330753573,1719755512465,-500.0,0.00014794,3]
[330753574,1719755512473,-429.65,0.00014794,3]
[330753575,1719755512483,-664.06,0.00014794,3]
[330753576,1719755512492,-565.11,0.00014794,3]
[330753577,1719755512501,-500.0,0.00014794,3]
[330753578,1719755512509,-500.0,0.00014794,3]
[330753579,1719755512518,-519.91,0.00014794,3]
[330753580,1719755512527,-191.49,0.00014794,3]
[330753581,1719755512538,-500.0,0.00014794,3]
[330753582,1719755512547,-500.0,0.00014794,3]
[330753583,1719755512557,-680.22,0.00014794,3]
[330753584,1719755512566,-763.34,0.00014794,3]
[330753585,1719755512576,-500.0,0.00014794,3]
[330753586,1719755512591,-500.0,0.00014794,3]
[330753587,1719755512601,-502.66,0.00014794,3]
[330753588,1719755512610,-500.0,0.00014794,3]
[330753589,1719755512620,-500.0,0.00014794,3]
[330753590,1719755512631,-657.33,0.00014794,3]
[330753591,1719755512640,-500.0,0.00014794,3]
[330753592,1719755512650,-726.36,0.00014794,3]
[330753593,1719755512660,-500.0,0.00014794,3]
[330753594,1719755512672,-500.0,0.00014794,3]
[330753595,1719755512682,-588.22,0.00014794,3]
[330753596,1719755512694,-1038.06,0.00014794,3]
[330753597,1719755512706,-581.82,0.00014794,3]
[330753598,1719755512715,-500.0,0.00014794,3]
[330753599,1719755512724,-500.0,0.00014794,3]
[330753600,1719755512733,-500.0,0.00014794,3]
[330753601,1719755512742,-500.0,0.00014794,3]
[330753602,1719755512751,-500.0,0.00014794,3]
[330753603,1719755512761,-500.0,0.00014794,3]
[330753604,1719755512770,-871.16,0.00014794,3]
[330753605,1719755512779,-500.0,0.00014794,3]
[330753606,1719755512790,-296.994123,0.00014794,3]
[330753607,1719755512800,-500.0,0.00014794,3]
[330753608,1719755512810,-1237.1,0.00014794,3]
[330753609,1719755512820,-978.48,0.00014794,3]
[330753610,1719755512830,-500.0,0.00014794,3]
[330753611,1719755512839,-298.05,0.00014794,3]
[330753612,1719755512849,-647.7,0.00014794,3]
[330753613,1719755512859,-515.55,0.00014794,3]
[330753614,1719755512868,-503.58,0.00014794,3]
[330753615,1719755512882,-500.0,0.00014794,3]
[330753616,1719755512905,-500.0,0.00014794,3]
[330753617,1719755512921,-568.53,0.00014794,3]
[330753618,1719755512941,-727.04,0.00014794,3]
[330753619,1719755512962,-731.31,0.00014794,3]
[330753620,1719755512981,-845.38,0.00014794,3]
[330753621,1719755513003,-653.03,0.00014794,3]
[330753622,1719755513018,-500.0,0.00014794,3]
[330753623,1719755513037,-626.4,0.00014794,3]
[330753624,1719755513056,-518.38,0.00014794,3]
[330753625,1719755513077,-1124.32,0.00014794,3]
[330753626,1719755513090,-680.8,0.00014794,3]
[330753627,1719755513110,-1020.54,0.00014794,3]
[330753628,1719755513125,-500.0,0.00014794,3]
[330753629,1719755513142,-500.0,0.00014794,3]
[330753630,1719755513158,-786.17,0.00014794,3]
[330753631,1719755513174,-500.0,0.00014794,3]
[330753632,1719755513190,-582.78,0.00014794,3]
[330753633,1719755513205,-500.0,0.00014794,3]
[330753634,1719755513220,-544.15,0.00014794,3]
[330753635,1719755513236,-500.0,0.00014794,3]
[330753636,1719755513253,-4117.59,0.00014794,3]
[330753637,1719755513269,-613.82,0.00014794,3]
[330753638,1719755513285,-500.0,0.00014794,3]
[330753639,1719755513300,-500.0,0.00014794,3]
[330753640,1719755513316,-766.18,0.00014794,3]
[330753641,1719755513331,-842.1,0.00014794,3]
[330753642,1719755513346,-500.0,0.00014794,3]
[330753643,1719755513361,-500.0,0.00014794,3]
[330753644,1719755513377,-500.0,0.00014794,3]
[330753645,1719755513393,-500.0,0.00014794,3]
[330753646,1719755513408,-500.0,0.00014794,3]
[330753647,1719755513424,-500.0,0.00014794,3]
[330753648,1719755513439,-933.76,0.00014794,3]
[330753649,1719755513460,-500.0,0.00014794,3]
[330753650,1719755513475,-1403.52,0.00014794,3]
[330753651,1719755513494,-500.0,0.00014794,3]
[330753652,1719755513510,-468.32,0.00014794,3]
[330753653,1719755513526,-534.11,0.00014794,3]
[330753654,1719755513542,-500.0,0.00014794,3]
[330753655,1719755513558,-500.0,0.00014794,3]
[330753656,1719755513574,-500.0,0.00014794,3]
[330753657,1719755513592,-500.0,0.00014794,3]
[330753658,1719755513608,-500.0,0.00014794,3]
[330753659,1719755513625,-648.58,0.00014794,3]
[330753660,1719755513641,-500.0,0.00014794,3]
[330753661,1719755513656,-668.63,0.00014794,3]
[330753662,1719755513673,-518.15,0.00014794,3]
[330753663,1719755513689,-500.0,0.00014794,3]
[330753664,1719755513704,-532.32,0.00014794,3]
[330753665,1719755513720,-1137.4,0.00014794,3]
[330753666,1719755513735,-750.23,0.00014794,3]
[330753667,1719755513751,-500.0,0.00014794,3]
[330753668,1719755513766,-565.47,0.00014794,3]
[330753669,1719755513781,-500.0,0.00014794,3]
[330753670,1719755513796,-500.0,0.00014794,3]
[330753671,1719755513812,-964.26,0.00014794,3]
[330753672,1719755513828,-502.48,0.00014794,3]
[330753673,1719755513844,-905.38,0.00014794,3]
[330753674,1719755513859,-500.0,0.00014794,3]
[330753675,1719755513874,-762.19,0.00014794,3]
[330753676,1719755513889,-500.0,0.00014794,3]
[330753677,1719755513904,-1355.12,0.00014794,3]
[330753678,1719755513919,-500.0,0.00014794,3]
[330753679,1719755513934,-500.0,0.00014794,3]
[330753680,1719755513949,-662.1,0.00014794,3]
[330753681,1719755513963,-188.17,0.00014794,3]
[330753682,1719755513978,-765.23,0.00014794,3]
[330753683,1719755513993,-690.29,0.00014794,3]
[330753684,1719755514009,-877.24,0.00014794,3]
[330753685,1719755514024,-500.0,0.00014794,3]
[330753686,1719755514038,-713.88,0.00014794,3]
[330753687,1719755514053,-500.0,0.00014794,3]
[330753688,1719755514067,-500.0,0.00014794,3]
[330753689,1719755514082,-500.0,0.00014794,3]
[330753690,1719755514098,-1457.02,0.00014794,3]
[330753691,1719755514112,-639.03,0.00014794,3]
[330753692,1719755514126,-1059.53,0.00014794,3]
[330753693,1719755514141,-500.0,0.00014794,3]
[330753694,1719755514155,-1241.5,0.00014794,3]
[330753695,1719755514169,-737.63,0.00014794,3]
[330753696,1719755514184,-1349.88,0.00014794,3]
[330753697,1719755514200,-561.34,0.00014794,3]
[330753698,1719755514214,-604.72,0.00014794,3]
[330753699,1719755514229,-500.0,0.00014794,3]
[330753700,1719755514244,-500.0,0.00014794,3]
[330753701,1719755514259,-500.0,0.00014794,3]
[330753702,1719755514274,-764.6,0.00014794,3]
[330753703,1719755514289,-660.46,0.00014794,3]
[330753704,1719755514310,-957.39,0.00014794,3]
[330753705,1719755514325,-604.79,0.00014794,3]
[330753706,1719755514340,-905.53,0.00014794,3]
[330753707,1719755514356,-500.0,0.00014794,3]
[330753708,1719755514370,-500.0,0.00014794,3]
[330753709,1719755514386,-526.22,0.00014794,3]
[330753710,1719755514401,-500.0,0.00014794,3]
[330753711,1719755514416,-500.0,0.00014794,3]
[330753712,1719755514432,-500.0,0.00014794,3]
[330753713,1719755514447,-622.84,0.00014794,3]
[330753714,1719755514461,-500.0,0.00014794,3]
[330753715,1719755514476,-1277.66,0.00014794,3]
[330753716,1719755514491,-500.0,0.00014794,3]
[330753717,1719755514507,-211.74,0.00014794,3]
[330753718,1719755514523,-707.52,0.00014794,3]
[330753719,1719755514539,-500.0,0.00014794,3]
[330753720,1719755514554,-616.94,0.00014794,3]
[330753721,1719755514570,-1641.91,0.00014794,3]
[330753722,1719755514586,-1304.99,0.00014794,3]
[330753723,1719755514602,-620.52,0.00014794,3]
[330753724,1719755514618,-500.0,0.00014794,3]
[330753725,1719755514633,-500.0,0.00014794,3]
[330753726,1719755514648,-500.0,0.00014794,3]
[330753727,1719755514663,-500.0,0.00014794,3]
[330753728,1719755514680,-500.0,0.00014794,3]
[330753729,1719755514696,-504.24,0.00014794,3]
[330753730,1719755514711,-832.16,0.00014794,3]
[330753731,1719755514726,-721.33,0.00014794,3]
[330753732,1719755514741,-614.4,0.00014794,3]
[330753733,1719755514756,-500.0,0.00014794,3]
[330753734,1719755515005,-700.83,0.00014794,3]
[330753735,1719755515038,-1044.88,0.00014794,3]
[330753736,1719755515052,-500.0,0.00014794,3]
[330753737,1719755515062,-500.0,0.00014794,3]
[330753738,1719755515072,-500.0,0.00014794,3]
[330753739,1719755515082,-507.13,0.00014794,3]
[330753740,1719755515092,-500.0,0.00014794,3]
[330753741,1719755515101,-500.0,0.00014794,3]
[330753742,1719755515110,-518.0,0.00014794,3]
[330753743,1719755515120,-500.0,0.00014794,3]
[330753744,1719755515129,-881.23,0.00014794,3]
[330753745,1719755515139,-891.0,0.00014794,3]
[330753746,1719755515148,-517.3,0.00014794,3]
[330753747,1719755515157,-656.4,0.00014794,3]
[330753748,1719755515166,-689.57,0.00014794,3]
[330753749,1719755515177,-957.05,0.00014794,3]
[330753750,1719755515186,-1173.05,0.00014794,3]
[330753751,1719755515197,-507.92,0.00014794,3]
[330753752,1719755515210,-544.05,0.00014794,3]
[330753753,1719755515220,-500.0,0.00014794,3]
[330753754,1719755515228,-266.99,0.00014794,3]
[330753755,1719755515238,-703.63,0.00014794,3]
[330753756,1719755515247,-592.64,0.00014794,3]
[330753757,1719755515256,-500.0,0.00014794,3]
[330753758,1719755515265,-500.0,0.00014794,3]
[330753759,1719755515275,-759.3,0.00014794,3]
[330753760,1719755515287,-500.0,0.00014794,3]
[330753761,1719755515296,-500.0,0.00014794,3]
[330753762,1719755515306,-641.73,0.00014794,3]
[330753763,1719755515315,-910.64,0.00014794,3]
[330753764,1719755515324,-544.61,0.00014794,3]
[330753765,1719755515333,-590.62,0.00014794,3]
[330753766,1719755515343,-500.0,0.00014794,3]
[330753767,1719755515352,-689.38,0.00014794,3]
[330753768,1719755515361,-500.0,0.00014794,3]
[330753769,1719755515371,-661.02,0.00014794,3]
[330753770,1719755515381,-2904.97,0.00014794,3]
[330753771,1719755515390,-500.0,0.00014794,3]
[330753772,1719755515400,-500.0,0.00014794,3]
[330753773,1719755515409,-507.72,0.00014794,3]
[330753774,1719755515420,-554.44,0.00014794,3]
[330753775,1719755515429,-500.0,0.00014794,3]
[330753776,1719755515439,-1290.65,0.00014794,3]
[330753777,1719755515449,-578.69,0.00014794,3]
[330753778,1719755515459,-655.08,0.00014794,3]
[330753779,1719755515468,-1361.14,0.00014794,3]
[330753780,1719755515477,-812.49,0.00014794,3]
[330753781,1719755515487,-634.96,0.00014794,3]
[330753782,1719755515497,-500.0,0.00014794,3]
[330753783,1719755515506,-500.0,0.00014794,3]
[330753784,1719755515515,-500.0,0.00014794,3]
[330753785,1719755515525,-500.0,0.00014794,3]
[330753786,1719755515535,-896.65,0.00014794,3]
[330753787,1719755515545,-787.92,0.00014794,3]
[330753788,1719755515555,-500.0,0.00014794,3]
[330753789,1719755515564,-500.0,0.00014794,3]
[330753790,1719755515574,-1488.55,0.00014794,3]
[330753791,1719755515583,-584.33,0.00014794,3]
[330753792,1719755515597,-1089.27,0.00014794,3]
[330753793,1719755515607,-500.0,0.00014794,3]
[330753794,1719755515616,-500.0,0.00014794,3]
[330753795,1719755515627,-500.0,0.00014794,3]
[330753796,1719755515637,-500.0,0.00014794,3]
[330753797,1719755515647,-664.84,0.00014794,3]
[330753798,1719755515656,-516.98,0.00014794,3]
[330753799,1719755515666,-350.0,0.00014795,2]
[330753800,1719755515675,-251.18950093,0.00014795,2]
[330753801,1719755515685,-228.17383828,0.00014804,2]
[330753802,1719755515695,-1135.43,0.0001483,3]
[330753803,1719755515705,-1617.34,0.0001483,3]
[330753804,1719755515715,-1220.92,0.0001483,3]
[330753805,1719755515724,-529.92,0.0001483,3]
[330753806,1719755515734,-1337.79,0.0001483,3]
[330753807,1719755515743,-1162.53,0.0001483,3]
[330753808,1719755515753,-3818.29,0.00014833,3]
[330753809,1719755515762,-151.0,0.00014836,2]
[330753810,1719755515771,-2148.15,0.00014861,3]
[330753811,1719755515783,-1274.99,0.00014861,3]
[330753812,1719755515793,-1079.15,0.0001487,3]
[330753813,1719755515803,-1590.65,0.0001487,3]
[330753814,1719755515813,-1459.73,0.0001487,3]
[330753815,1719755515822,-911.31,0.0001487,3]
[330753816,1719755515831,-592.8,0.0001487,3]
[330753817,1719755515840,-830.15,0.0001487,3]
[330753818,1719755515850,-1114.89,0.0001487,3]
[330753819,1719755515859,-500.0,0.0001487,3]
[330753820,1719755515868,-967.5,0.0001487,3]
[330753821,1719755515877,-640.83,0.0001487,3]
[330753822,1719755515888,-500.0,0.0001487,3]
[330753823,1719755515897,-250.0,0.00014881,2]
[330753824,1719755515906,-200.0,0.00014898,2]
[330753825,1719755515915,-500.0,0.00014904,3]
[330753826,1719755515926,-500.0,0.00014904,3]
[330753827,1719755515936,-1492.12,0.00014904,3]
[330753828,1719755515945,-526.54,0.00014904,3]
[330753829,1719755515955,-518.76,0.00014904,3]
[330753830,1719755515964,-500.0,0.00014904,3]
[330753831,1719755515975,-554.07,0.00014904,3]
[330753832,1719755515985,-500.0,0.00014904,3]
[330753833,1719755515995,-500.0,0.00014904,3]
[330753834,1719755516007,-500.0,0.00014904,3]
[330753835,1719755516017,-500.0,0.00014904,3]
[330753836,1719755516027,-500.0,0.00014904,3]
[330753837,1719755516036,-500.0,0.00014904,3]
[330753838,1719755516046,-500.0,0.00014904,3]
[330753839,1719755516055,-500.0,0.00014904,3]